[Event "XII Paracin Festival 2019"]
[Site "Paracin"]
[Date "2019.07.06"]
[Round "2.18"]
[White "Strugnell, Carl"]
[Black "Janzelj, Tim"]
[Result "0-1"]
[ECO "C13"]
[WhiteElo "2248"]
[BlackElo "2416"]
[Annotator "NA"]
[PlyCount "62"]
[EventDate "2019.07.05"]
[EventType "swiss"]
[EventCountry "SRB"]
[SourceTitle "playchess.com"]
[Source "ChessBase"]
[SourceQuality "1"]
[TimeControl "5400+30"]

1. e4 {[%emt 0:00:05]} e6 {[%emt 0:01:29]} 2. d4 {[%emt 0:00:06]} d5 {[%emt 0:00:05]} 3. Nc3 {[%emt 0:00:06]} Nf6 {[%emt 0:00:06]} 4. Bg5 {[%emt 0:00:06]} Be7 {[%emt 0:00:17]} 5. e5 {[%emt 0:00:10]} Nfd7 {[%emt 0:00:09]} 6. h4 {[%emt 0:00:29]} a6 {[%emt 0:02:33]} 7. Qg4 {[%emt 0:03:35]} h5 {[%emt 0:13:27]} 8. Qf4 {[%emt 0:13:28]} f6 {[%emt 0:10:18]} 9. exf6 {[%emt 0:06:19]} gxf6 {[%emt 0:01:44]} 10. Bh6 {[%emt 0:00:22]} c5 {[%emt 0:04:32]} 11. Be2 {[%emt 0:17:54]} Qb6 {[%emt 0:09:09]} 12. Bxh5+ {[%emt 0:01:08]} Kd8 {[%emt 0:00:02]} 13. Nge2 {[%emt 0:00:29]} cxd4 {[%emt 0:03:38]} 14. Nd1 {[%emt 0:00:38]} e5 {[%emt 0:01:13]} 15. Qd2 {[%emt 0:01:06]} f5 {[%emt 0:02:06]} 16. Bg5 {[%emt 0:03:33]} Rxh5 {[%emt 0:02:23]} 17. Bxe7+ {[%emt 0:00:07]} Kxe7 {[%emt 0:00:08]} 18. Ng3 {[%emt 0:00:05]} Rh8 {[%emt 0:00:31]} 19. Nxf5+ {[%emt 0:00:19]} Kf7 {[%emt 0:00:37]} 20. Rh3 {[%emt 0:02:20]} Nf6 {[%emt 0:01:56]} 21. Rb3 {[%emt 0:05:47]} Qc7 {[%emt 0:03:19]} 22. Nh6+ {[%emt 0:02:41]} Ke6 {[%emt 0:10:05]} 23. g4 {[%emt 0:03:45]} Ne4 {[%emt 0:03:47]} 24. Qc1 {[%emt 0:00:09]} Qg7 {[%emt 0:05:56]} 25. g5 {[%emt 0:02:16]} Rxh6 26. gxh6 Qg1+ 27. Ke2 Kd6 28. h7 Bg4+ 29. Rf3 Nd7 30. Qh6+ Ndf6 31. Ne3 Qxf2+ 0-1

[Event "XII Paracin Festival 2019"]
[Site "Paracin"]
[Date "2019.07.06"]
[Round "2.19"]
[White "Bratkovic, Sham"]
[Black "Djordjevic, Vuk"]
[Result "1/2-1/2"]
[ECO "E58"]
[WhiteElo "2237"]
[BlackElo "2412"]
[Annotator "NA"]
[PlyCount "211"]
[EventDate "2019.07.05"]
[EventType "swiss"]
[EventCountry "SRB"]
[SourceTitle "playchess.com"]
[Source "ChessBase"]
[SourceQuality "1"]
[TimeControl "5400+30"]

1. d4 {[%emt 0:02:02]} Nf6 {[%emt 0:00:29]} 2. c4 {[%emt 0:00:46]} e6 {[%emt 0:00:25]} 3. Nc3 {[%emt 0:00:50]} Bb4 {[%emt 0:00:16]} 4. e3 {[%emt 0:00:52]} O-O {[%emt 0:00:25]} 5. Bd3 {[%emt 0:01:11]} d5 {[%emt 0:00:15]} 6. Nf3 {[%emt 0:00:26]} c5 {[%emt 0:00:14]} 7. O-O {[%emt 0:00:46]} Nc6 {[%emt 0:00:28]} 8. a3 {[%emt 0:01:02]} Bxc3 {[%emt 0:00:36]} 9. bxc3 {[%emt 0:00:08]} b6 {[%emt 0:00:41]} 10. cxd5 {[%emt 0:06:21]} exd5 {[%emt 0:01:49]} 11. c4 {[%emt 0:02:03]} cxd4 {[%emt 0:14:00]} 12. exd4 {[%emt 0:06:15]} Bg4 {[%emt 0:05:37]} 13. Bb2 {[%emt 0:05:33]} dxc4 {[%emt 0:20:51]} 14. Bxc4 {[%emt 0:01:29]} Na5 {[%emt 0:02:30]} 15. Ba2 {[%emt 0:05:33]} Rc8 {[%emt 0:01:41]} 16. h3 {[%emt 0:18:28]} Bh5 17. Qd3 {[%emt 0:02:30]} Bg6 {[%emt 0:04:35]} 18. Qb5 {[%emt 0:03:48]} Be4 19. Rac1 Bc6 {[%emt 0:10:53]} 20. Qd3 {[%emt 0:13:51]} Be4 {[%emt 0:03:37]} 21. Qb5 {[%emt 0:03:07]} Qd6 22. Ne5 {[%emt 0:10:53]} Bd5 {[%emt 0:01:44]} 23. Bxd5 Nxd5 24. Rxc8 {[%emt 0:04:06]} Rxc8 {[%emt 0:07:02]} 25. Rc1 Rxc1+ {[%emt 0:06:44]} 26. Bxc1 {[%emt 0:00:12]} Qe6 {[%emt 0:00:47]} 27. Bd2 {[%emt 0:01:32]} f6 28. Nf3 {[%emt 0:01:38]} Nc6 {[%emt 0:01:30]} 29. Qa6 {[%emt 0:01:20]} Qd7 {[%emt 0:02:04]} 30. Qc4 {[%emt 0:00:23]} Nd8 {[%emt 0:01:10]} 31. Ne1 {[%emt 0:01:13]} Ne6 {[%emt 0:02:03]} 32. Nd3 {[%emt 0:02:12]} Kf7 {[%emt 0:00:51]} 33. Nb4 {[%emt 0:02:39]} Nxb4 {[%emt 0:00:52]} 34. Bxb4 {[%emt 0:00:06]} Qxd4 {[%emt 0:01:28]} 35. Qc8 {[%emt 0:00:06]} Qd1+ {[%emt 0:03:20]} 36. Kh2 {[%emt 0:00:05]} Qd5 37. Kg1 {[%emt 0:01:30]} a5 {[%emt 0:01:52]} 38. Bc3 {[%emt 0:00:36]} Qd1+ {[%emt 0:01:24]} 39. Kh2 {[%emt 0:00:07]} Qd6+ {[%emt 0:00:03]} 40. Kg1 {[%emt 0:01:40]} Nc5 41. Qf5 {[%emt 0:00:58]} Qd1+ {[%emt 0:01:33]} 42. Kh2 {[%emt 0:00:05]} Qd3 {[%emt 0:00:03]} 43. Qh5+ {[%emt 0:00:26]} Ke7 {[%emt 0:00:22]} 44. Bb2 {[%emt 0:01:03]} Qc2 {[%emt 0:01:17]} 45. Bd4 {[%emt 0:00:43]} Nd7 {[%emt 0:02:00]} 46. Qg4 {[%emt 0:00:46]} g6 {[%emt 0:00:42]} 47. Qh4 {[%emt 0:00:21]} h5 {[%emt 0:00:15]} 48. Qf4 {[%emt 0:00:37]} Qc6 {[%emt 0:00:23]} 49. Kg1 {[%emt 0:00:49]} Qd6 {[%emt 0:01:55]} 50. Qe3+ {[%emt 0:00:26]} Kf7 {[%emt 0:00:12]} 51. Bb2 {[%emt 0:00:29]} Qe6 {[%emt 0:00:32]} 52. Qf3 {[%emt 0:00:43]} Nc5 {[%emt 0:01:02]} 53. Bd4 {[%emt 0:00:29]} Nd7 {[%emt 0:00:20]} 54. Qb7 {[%emt 0:00:42]} Ke7 {[%emt 0:00:14]} 55. Be3 {[%emt 0:00:45]} a4 {[%emt 0:02:30]} 56. Qa8 {[%emt 0:00:32]} b5 {[%emt 0:00:40]} 57. Qb7 {[%emt 0:00:17]} Qc4 {[%emt 0:00:19]} 58. Bd2 {[%emt 0:00:27]} Qd3 {[%emt 0:00:44]} 59. Bb4+ {[%emt 0:00:13]} Kf7 {[%emt 0:00:21]} 60. Qc6 {[%emt 0:00:47]} g5 {[%emt 0:01:22]} 61. Qc8 {[%emt 0:00:29]} Qd1+ {[%emt 0:00:20]} 62. Kh2 {[%emt 0:00:06]} Qd5 {[%emt 0:00:01]} 63. Qh8 {[%emt 0:00:26]} Kg6 64. Qe8+ {[%emt 0:00:32]} Qf7 {[%emt 0:02:00]} 65. Qe4+ {[%emt 0:00:07]} Kg7 {[%emt 0:00:15]} 66. Qc6 {[%emt 0:00:33]} Ne5 {[%emt 0:00:45]} 67. Qxb5 {[%emt 0:00:26]} Qc7 {[%emt 0:00:06]} 68. Kg1 {[%emt 0:00:51]} Qc1+ {[%emt 0:00:14]} 69. Kh2 {[%emt 0:00:03]} Qc2 {[%emt 0:01:00]} 70. Qc5 Qxc5 71. Bxc5 {[%emt 0:01:07]} Kf7 {[%emt 0:01:11]} 72. f3 {[%emt 0:01:20]} Ke6 {[%emt 0:00:21]} 73. h4 {[%emt 0:00:45]} g4 {[%emt 0:00:32]} 74. fxg4 {[%emt 0:00:19]} Nxg4+ {[%emt 0:00:24]} 75. Kg3 {[%emt 0:00:06]} Kd5 {[%emt 0:00:10]} 76. Be7 {[%emt 0:00:34]} Ke4 {[%emt 0:00:27]} 77. Bd8 {[%emt 0:00:31]} f5 {[%emt 0:00:29]} 78. Bg5 {[%emt 0:00:22]} Ne3 {[%emt 0:00:44]} 79. Kf2 {[%emt 0:00:46]} Nc4 {[%emt 0:00:46]} 80. Be7 {[%emt 0:00:08]} Kf4 {[%emt 0:00:17]} 81. g3+ {[%emt 0:00:49]} Kg4 {[%emt 0:00:52]} 82. Kg2 {[%emt 0:00:29]} Ne3+ {[%emt 0:00:22]} 83. Kf2 {[%emt 0:00:08]} Nc4 {[%emt 0:00:10]} 84. Kg2 {[%emt 0:00:37]} Ne3+ {[%emt 0:00:23]} 85. Kf2 {[%emt 0:00:04]} f4 {[%emt 0:00:17]} 86. gxf4 {[%emt 0:00:39]} Nd5 {[%emt 0:00:01]} 87. Bd8 {[%emt 0:00:58]} Nxf4 {[%emt 0:01:29]} 88. Ke3 {[%emt 0:00:25]} Ng2+ {[%emt 0:00:35]} 89. Kd4 {[%emt 0:00:13]} Nxh4 {[%emt 0:00:07]} 90. Kc4 {[%emt 0:00:08]} Nf3 {[%emt 0:00:50]} 91. Kb4 {[%emt 0:00:10]} Ng5 {[%emt 0:00:37]} 92. Kxa4 {[%emt 0:00:06]} h4 {[%emt 0:00:08]} 93. Kb4 {[%emt 0:00:41]} h3 {[%emt 0:00:17]} 94. Bc7 {[%emt 0:00:07]} Ne4 {[%emt 0:00:46]} 95. Bh2 {[%emt 0:00:21]} Kf3 {[%emt 0:00:25]} 96. a4 {[%emt 0:00:30]} Kg2 {[%emt 0:00:23]} 97. a5 {[%emt 0:00:24]} Kxh2 {[%emt 0:00:10]} 98. a6 {[%emt 0:00:04]} Nf6 {[%emt 0:00:36]} 99. a7 {[%emt 0:01:19]} Nd5+ {[%emt 0:00:09]} 100. Kc5 {[%emt 0:00:15]} Nc7 {[%emt 0:00:04]} 101. Kc6 {[%emt 0:00:10]} Na8 {[%emt 0:00:03]} 102. Kb7 {[%emt 0:00:08]} Kg1 {[%emt 0:00:06]} 103. Kxa8 {[%emt 0:00:03]} h2 {[%emt 0:00:04]} 104. Kb8 {[%emt 0:00:09]} h1=Q {[%emt 0:00:04]} 105. a8=Q {[%emt 0:00:10]} Qxa8+ {[%emt 0:00:02]} 106. Kxa8 {[%emt 0:00:05]} 1/2-1/2

[Event "XII Paracin Festival 2019"]
[Site "Paracin"]
[Date "2019.07.06"]
[Round "2.20"]
[White "McPhillips, Joseph"]
[Black "Nestorovic, Katarina"]
[Result "1-0"]
[ECO "A46"]
[WhiteElo "2412"]
[BlackElo "2179"]
[Annotator "NA"]
[PlyCount "80"]
[EventDate "2019.07.05"]
[EventType "swiss"]
[EventCountry "SRB"]
[SourceTitle "playchess.com"]
[Source "ChessBase"]
[SourceQuality "1"]
[TimeControl "5400+30"]

1. d4 {[%emt 0:01:57]} Nf6 {[%emt 0:00:00]} 2. Nf3 {[%emt 0:00:03]} e6 {[%emt 0:00:09]} 3. Bf4 {[%emt 0:00:02]} c5 {[%emt 0:00:24]} 4. e3 {[%emt 0:00:06]} d5 {[%emt 0:00:35]} 5. c3 {[%emt 0:00:15]} Nc6 {[%emt 0:00:27]} 6. Nbd2 {[%emt 0:02:02]} Bd6 {[%emt 0:00:44]} 7. Bg3 {[%emt 0:00:04]} O-O {[%emt 0:01:01]} 8. Bb5 {[%emt 0:00:20]} Ne7 {[%emt 0:04:11]} 9. Bd3 {[%emt 0:03:22]} Qc7 {[%emt 0:23:28]} 10. O-O {[%emt 0:01:16]} b6 {[%emt 0:04:21]} 11. Rc1 {[%emt 0:05:57]} Bb7 {[%emt 0:01:11]} 12. Qa4 {[%emt 0:20:03]} Bc6 {[%emt 0:04:20]} 13. Qa3 {[%emt 0:00:49]} Bxg3 {[%emt 0:03:20]} 14. hxg3 {[%emt 0:00:08]} c4 {[%emt 0:00:21]} 15. Bc2 {[%emt 0:03:46]} a5 {[%emt 0:02:28]} 16. b3 {[%emt 0:02:51]} b5 {[%emt 0:02:05]} 17. Rfe1 {[%emt 0:02:19]} Rfb8 {[%emt 0:05:34]} 18. bxc4 {[%emt 0:04:10]} dxc4 {[%emt 0:01:25]} 19. Qc5 {[%emt 0:05:52]} Ned5 {[%emt 0:04:18]} 20. Ne5 {[%emt 0:00:39]} Ra6 {[%emt 0:07:13]} 21. a4 {[%emt 0:10:01]} Qb7 {[%emt 0:01:55]} 22. axb5 {[%emt 0:00:57]} Bxb5 {[%emt 0:06:11]} 23. Qa3 {[%emt 0:00:10]} Qc7 {[%emt 0:01:36]} 24. Rb1 {[%emt 0:02:06]} Nd7 {[%emt 0:01:24]} 25. Nxd7 {[%emt 0:02:02]} Qxd7 {[%emt 0:06:33]} 26. Ne4 {[%emt 0:00:20]} Qd8 {[%emt 0:01:43]} 27. Nc5 Ra7 28. e4 {[%emt 0:01:08]} Nc7 {[%emt 0:01:13]} 29. Ba4 {[%emt 0:01:27]} Qe8 {[%emt 0:01:27]} 30. Qa2 {[%emt 0:01:30]} Rc8 {[%emt 0:01:52]} 31. Rxb5 {[%emt 0:06:23]} Nxb5 {[%emt 0:00:48]} 32. Qb2 {[%emt 0:00:03]} Rb8 {[%emt 0:02:23]} 33. Rb1 {[%emt 0:00:12]} Qd8 {[%emt 0:00:50]} 34. Bxb5 {[%emt 0:00:11]} a4 {[%emt 0:00:25]} 35. Qa2 {[%emt 0:01:43]} a3 {[%emt 0:01:29]} 36. Bxc4 {[%emt 0:01:15]} g6 {[%emt 0:00:39]} 37. e5 {[%emt 0:01:24]} Rxb1+ {[%emt 0:00:39]} 38. Qxb1 {[%emt 0:01:52]} Kg7 {[%emt 0:01:25]} 39. Ba2 {[%emt 0:03:19]} Qa5 {[%emt 0:00:48]} 40. Qb3 {[%emt 0:02:46]} Rc7 {[%emt 0:00:33]} 1-0

[Event "XII Paracin Festival 2019"]
[Site "Paracin"]
[Date "2019.07.06"]
[Round "2.21"]
[White "Harvey, Marcus R"]
[Black "Spirliadis, Achileas"]
[Result "1/2-1/2"]
[ECO "A05"]
[WhiteElo "2402"]
[BlackElo "2151"]
[Annotator "NA"]
[PlyCount "100"]
[EventDate "2019.07.05"]
[EventType "swiss"]
[EventCountry "SRB"]
[SourceTitle "playchess.com"]
[Source "ChessBase"]
[SourceQuality "1"]
[TimeControl "5400+30"]

1. Nf3 {[%emt 0:00:30]} Nf6 {[%emt 0:00:00]} 2. b3 {[%emt 0:00:07]} g6 {[%emt 0:02:12]} 3. Bb2 {[%emt 0:00:03]} Bg7 {[%emt 0:00:06]} 4. e3 {[%emt 0:00:04]} d5 {[%emt 0:01:05]} 5. c4 {[%emt 0:00:18]} c6 {[%emt 0:00:56]} 6. Be2 {[%emt 0:00:06]} O-O {[%emt 0:00:07]} 7. O-O {[%emt 0:00:05]} Nbd7 {[%emt 0:11:55]} 8. Qc2 {[%emt 0:01:54]} Re8 {[%emt 0:05:22]} 9. Nc3 {[%emt 0:00:40]} a6 {[%emt 0:00:41]} 10. d4 {[%emt 0:00:55]} dxc4 {[%emt 0:10:03]} 11. bxc4 {[%emt 0:04:50]} e5 {[%emt 0:03:23]} 12. Rfd1 {[%emt 0:03:28]} exd4 {[%emt 0:06:48]} 13. exd4 {[%emt 0:00:02]} Qa5 {[%emt 0:01:27]} 14. Nd2 {[%emt 0:04:59]} Nb6 {[%emt 0:18:43]} 15. Nb3 {[%emt 0:01:23]} Qf5 {[%emt 0:01:09]} 16. Qxf5 {[%emt 0:01:01]} Bxf5 {[%emt 0:00:10]} 17. Bf1 {[%emt 0:01:30]} Rad8 {[%emt 0:05:28]} 18. Na5 {[%emt 0:00:33]} Rd7 {[%emt 0:03:00]} 19. h3 {[%emt 0:15:36]} h5 {[%emt 0:00:25]} 20. Nb3 {[%emt 0:04:33]} Nh7 {[%emt 0:08:38]} 21. c5 {[%emt 0:06:42]} Nd5 {[%emt 0:00:41]} 22. Nxd5 {[%emt 0:00:48]} Rxd5 {[%emt 0:00:34]} 23. Na5 {[%emt 0:04:57]} Ng5 {[%emt 0:01:36]} 24. Nc4 {[%emt 0:03:36]} Rd7 {[%emt 0:01:48]} 25. Rac1 {[%emt 0:14:47]} Red8 {[%emt 0:01:24]} 26. Nb6 {[%emt 0:04:26]} Re7 {[%emt 0:01:38]} 27. Ba1 {[%emt 0:00:40]} Be6 {[%emt 0:02:51]} 28. Rc2 {[%emt 0:02:19]} Ne4 {[%emt 0:01:16]} 29. g3 {[%emt 0:09:18]} Nf6 {[%emt 0:00:50]} 30. Re1 {[%emt 0:00:55]} Rc7 {[%emt 0:03:08]} 31. a3 {[%emt 0:01:47]} Nd5 {[%emt 0:02:21]} 32. Nc4 {[%emt 0:00:16]} Rcd7 {[%emt 0:00:17]} 33. Rd2 {[%emt 0:02:48]} Nc7 {[%emt 0:01:14]} 34. Nb6 {[%emt 0:00:55]} Re7 {[%emt 0:00:53]} 35. a4 {[%emt 0:00:32]} Ree8 {[%emt 0:00:12]} 36. Rb1 {[%emt 0:00:38]} Bf5 {[%emt 0:00:26]} 37. Rbd1 {[%emt 0:00:12]} Bh6 {[%emt 0:01:02]} 38. Re2 {[%emt 0:03:29]} Rxe2 {[%emt 0:00:27]} 39. Bxe2 {[%emt 0:00:01]} Bxh3 {[%emt 0:00:20]} 40. Nc4 {[%emt 0:00:05]} Nd5 {[%emt 0:00:26]} 41. Rb1 {[%emt 0:00:23]} Re8 {[%emt 0:01:33]} 42. Bf1 {[%emt 0:00:19]} Bf5 {[%emt 0:00:12]} 43. Nd6 {[%emt 0:00:57]} Bxb1 {[%emt 0:00:10]} 44. Nxe8 {[%emt 0:00:05]} Bf8 {[%emt 0:01:28]} 45. Bg2 {[%emt 0:00:55]} Ba2 {[%emt 0:00:53]} 46. Bxd5 {[%emt 0:03:57]} Bxd5 {[%emt 0:00:21]} 47. Bc3 {[%emt 0:00:53]} Be7 {[%emt 0:00:31]} 48. a5 {[%emt 0:00:24]} Kf8 {[%emt 0:02:37]} 49. Nd6 {[%emt 0:00:04]} Bxd6 {[%emt 0:00:28]} 50. cxd6 {[%emt 0:00:03]} Ke8 {[%emt 0:00:19]} 1/2-1/2

[Event "XII Paracin Festival 2019"]
[Site "Paracin"]
[Date "2019.07.06"]
[Round "2.22"]
[White "Saksham Rautela"]
[Black "Arsovic, Zoran"]
[Result "1/2-1/2"]
[ECO "B84"]
[WhiteElo "2232"]
[BlackElo "2398"]
[Annotator "NA"]
[PlyCount "94"]
[EventDate "2019.07.05"]
[EventType "swiss"]
[EventCountry "SRB"]
[SourceTitle "playchess.com"]
[Source "ChessBase"]
[SourceQuality "1"]
[TimeControl "5400+30"]

1. e4 {[%emt 0:00:00]} c5 {[%emt 0:00:00]} 2. Nf3 {[%emt 0:00:00]} e6 {[%emt 0:00:03]} 3. d4 {[%emt 0:00:00]} cxd4 {[%emt 0:00:28]} 4. Nxd4 {[%emt 0:00:00]} d6 {[%emt 0:00:26]} 5. Nc3 {[%emt 0:00:00]} a6 {[%emt 0:00:21]} 6. Be2 {[%emt 0:00:20]} Nf6 {[%emt 0:00:49]} 7. O-O {[%emt 0:00:26]} Be7 {[%emt 0:01:43]} 8. Be3 {[%emt 0:01:13]} O-O {[%emt 0:00:35]} 9. f4 {[%emt 0:01:11]} Nc6 {[%emt 0:00:36]} 10. Qe1 {[%emt 0:06:19]} Nxd4 {[%emt 0:01:31]} 11. Bxd4 {[%emt 0:01:02]} b5 {[%emt 0:00:12]} 12. a3 {[%emt 0:01:25]} Bb7 {[%emt 0:00:22]} 13. Qg3 {[%emt 0:00:55]} g6 {[%emt 0:02:04]} 14. Bf3 {[%emt 0:12:02]} a5 {[%emt 0:03:05]} 15. Rad1 {[%emt 0:18:08]} b4 {[%emt 0:02:44]} 16. e5 {[%emt 0:05:47]} Bxf3 {[%emt 0:09:52]} 17. Qxf3 {[%emt 0:10:36]} bxc3 {[%emt 0:01:31]} 18. exf6 {[%emt 0:00:06]} Bxf6 {[%emt 0:00:09]} 19. Qxc3 {[%emt 0:00:09]} Bxd4+ {[%emt 0:01:03]} 20. Qxd4 {[%emt 0:00:14]} d5 {[%emt 0:10:31]} 21. c4 {[%emt 0:04:55]} dxc4 {[%emt 0:07:05]} 22. Qxc4 {[%emt 0:00:39]} Qb6+ {[%emt 0:03:27]} 23. Qd4 {[%emt 0:00:13]} Rab8 {[%emt 0:00:41]} 24. Qxb6 {[%emt 0:01:19]} Rxb6 {[%emt 0:00:07]} 25. Rd2 {[%emt 0:00:14]} Rc8 {[%emt 0:07:07]} 26. Re1 {[%emt 0:04:52]} Rc5 {[%emt 0:06:23]} 27. Re4 {[%emt 0:03:37]} Rb3 {[%emt 0:08:51]} 28. Rde2 {[%emt 0:04:40]} h5 {[%emt 0:06:15]} 29. Re5 {[%emt 0:04:44]} Rxe5 {[%emt 0:06:44]} 30. Rxe5 {[%emt 0:00:09]} Rxb2 {[%emt 0:01:04]} 31. Rxa5 {[%emt 0:00:02]} h4 {[%emt 0:00:55]} 32. Ra4 {[%emt 0:10:12]} Ra2 {[%emt 0:01:48]} 33. Ra7 {[%emt 0:02:01]} Kg7 {[%emt 0:03:58]} 34. Ra5 {[%emt 0:03:53]} Kf6 {[%emt 0:00:43]} 35. Ra7 {[%emt 0:01:00]} Rc2 {[%emt 0:03:57]} 36. Ra4 {[%emt 0:04:06]} Ra2 {[%emt 0:06:31]} 37. Ra7 {[%emt 0:00:58]} Rc2 {[%emt 0:01:43]} 38. Ra4 {[%emt 0:00:07]} g5 {[%emt 0:00:31]} 39. fxg5+ {[%emt 0:00:56]} Kxg5 {[%emt 0:00:06]} 40. Re4 {[%emt 0:00:39]} Rb2 {[%emt 0:01:53]} 41. h3 {[%emt 0:00:36]} Ra2 {[%emt 0:01:15]} 42. a4 {[%emt 0:00:16]} Rc2 {[%emt 0:00:24]} 43. Rg4+ {[%emt 0:00:31]} Kh5 {[%emt 0:00:08]} 44. Re4 {[%emt 0:00:08]} Ra2 {[%emt 0:00:57]} 45. Kf1 {[%emt 0:00:28]} Kg5 {[%emt 0:00:35]} 46. Rg4+ {[%emt 0:00:09]} Kh5 {[%emt 0:00:20]} 47. Re4 {[%emt 0:00:07]} Kg5 1/2-1/2

[Event "XII Paracin Festival 2019"]
[Site "Paracin"]
[Date "2019.07.06"]
[Round "2.23"]
[White "Martic, Ivan"]
[Black "Pimpalkhare Vedant"]
[Result "1-0"]
[ECO "E06"]
[WhiteElo "2392"]
[BlackElo "2150"]
[Annotator "NA"]
[PlyCount "39"]
[EventDate "2019.07.05"]
[EventType "swiss"]
[EventCountry "SRB"]
[SourceTitle "playchess.com"]
[Source "ChessBase"]
[SourceQuality "1"]
[TimeControl "5400+30"]

1. d4 e6 {[%emt 0:00:00]} 2. c4 {[%emt 0:00:00]} Nf6 {[%emt 0:00:43]} 3. g3 d5 4. Nf3 {[%emt 0:00:54]} Be7 {[%emt 0:00:41]} 5. Bg2 {[%emt 0:00:08]} O-O {[%emt 0:00:12]} 6. O-O {[%emt 0:00:06]} dxc4 {[%emt 0:00:07]} 7. Na3 {[%emt 0:00:17]} Bxa3 {[%emt 0:13:08]} 8. bxa3 {[%emt 0:00:26]} Nc6 {[%emt 0:00:21]} 9. Bb2 {[%emt 0:00:13]} Bd7 {[%emt 0:09:08]} 10. Qc2 {[%emt 0:03:21]} b5 {[%emt 0:06:43]} 11. Ng5 {[%emt 0:06:04]} g6 {[%emt 0:04:04]} 12. e4 {[%emt 0:01:29]} Ne8 {[%emt 0:09:03]} 13. h4 {[%emt 0:04:58]} f6 {[%emt 0:09:26]} 14. Nf3 {[%emt 0:10:13]} Qe7 {[%emt 0:06:58]} 15. Rfe1 {[%emt 0:13:03]} Rd8 {[%emt 0:06:02]} 16. e5 fxe5 17. dxe5 {[%emt 0:01:00]} Bc8 {[%emt 0:06:25]} 18. Rad1 {[%emt 0:03:40]} Nb8 {[%emt 0:09:38]} 19. Ng5 {[%emt 0:06:00]} Nd7 {[%emt 0:01:26]} 20. Nxe6 {[%emt 0:01:03]} 1-0

[Event "XII Paracin Festival 2019"]
[Site "Paracin"]
[Date "2019.07.06"]
[Round "2.24"]
[White "Toncheva, Nadya"]
[Black "Liu, Zhaoqi"]
[Result "0-1"]
[ECO "A67"]
[WhiteElo "2087"]
[BlackElo "2386"]
[Annotator "NA"]
[PlyCount "184"]
[EventDate "2019.07.05"]
[EventType "swiss"]
[EventCountry "SRB"]
[SourceTitle "playchess.com"]
[Source "ChessBase"]
[SourceQuality "1"]
[TimeControl "5400+30"]

1. d4 {[%emt 0:00:00]} Nf6 {[%emt 0:00:00]} 2. c4 {[%emt 0:00:00]} c5 {[%emt 0:00:00]} 3. d5 {[%emt 0:00:00]} e6 {[%emt 0:00:00]} 4. Nc3 {[%emt 0:00:00]} exd5 {[%emt 0:00:00]} 5. cxd5 {[%emt 0:00:00]} d6 {[%emt 0:00:00]} 6. e4 {[%emt 0:00:00]} g6 {[%emt 0:00:00]} 7. f4 {[%emt 0:00:00]} Bg7 {[%emt 0:00:00]} 8. Bb5+ {[%emt 0:00:04]} Nfd7 {[%emt 0:00:00]} 9. a4 {[%emt 0:00:05]} O-O {[%emt 0:00:02]} 10. Nf3 {[%emt 0:00:04]} Na6 {[%emt 0:00:03]} 11. O-O {[%emt 0:00:07]} Nb4 {[%emt 0:00:01]} 12. Be3 {[%emt 0:00:06]} a6 {[%emt 0:00:24]} 13. Be2 {[%emt 0:00:06]} Re8 {[%emt 0:00:32]} 14. Bf2 {[%emt 0:00:05]} Nf6 {[%emt 0:03:26]} 15. Nd2 {[%emt 0:00:07]} Qc7 {[%emt 0:03:50]} 16. Bg3 {[%emt 0:06:28]} Bd7 {[%emt 0:03:12]} 17. Bf3 {[%emt 0:03:21]} c4 {[%emt 0:02:24]} 18. e5 {[%emt 0:07:36]} Nfxd5 {[%emt 0:01:37]} 19. Nxd5 {[%emt 0:00:05]} Nxd5 {[%emt 0:00:04]} 20. Nxc4 {[%emt 0:00:59]} Qxc4 {[%emt 0:06:10]} 21. Bxd5 {[%emt 0:00:10]} Qb4 {[%emt 0:00:03]} 22. Ra3 {[%emt 0:06:24]} Bc6 {[%emt 0:14:57]} 23. Bxc6 {[%emt 0:08:28]} bxc6 {[%emt 0:01:23]} 24. Qxd6 {[%emt 0:06:44]} Qxb2 {[%emt 0:01:03]} 25. Rd3 {[%emt 0:00:33]} Rac8 {[%emt 0:05:33]} 26. Qd4 {[%emt 0:07:11]} Qb8 {[%emt 0:06:09]} 27. Qc4 {[%emt 0:01:35]} Qa7+ {[%emt 0:11:55]} 28. Bf2 {[%emt 0:00:53]} c5 {[%emt 0:00:06]} 29. Rfd1 {[%emt 0:00:52]} Qe7 {[%emt 0:03:13]} 30. Rd6 {[%emt 0:04:00]} a5 {[%emt 0:01:35]} 31. Rd7 {[%emt 0:05:26]} Qe6 {[%emt 0:00:08]} 32. Qxe6 {[%emt 0:00:09]} fxe6 {[%emt 0:00:01]} 33. Ra7 {[%emt 0:00:22]} c4 {[%emt 0:00:26]} 34. Rxa5 {[%emt 0:01:34]} Bf8 {[%emt 0:00:51]} 35. Kf1 {[%emt 0:03:06]} c3 {[%emt 0:00:10]} 36. Be3 {[%emt 0:00:21]} c2 {[%emt 0:08:06]} 37. Ra1 {[%emt 0:00:05]} Rc3 {[%emt 0:01:30]} 38. Bc1 {[%emt 0:06:48]} Rb8 {[%emt 0:04:47]} 39. Rb5 {[%emt 0:00:06]} Rxb5 {[%emt 0:00:07]} 40. axb5 {[%emt 0:00:03]} Rb3 {[%emt 0:00:03]} 41. Ra2 {[%emt 0:00:06]} Rb1 {[%emt 0:00:37]} 42. Rxc2 {[%emt 0:00:04]} Ba3 {[%emt 0:00:02]} 43. Ke2 {[%emt 0:00:31]} Bxc1 {[%emt 0:03:46]} 44. Kf3 {[%emt 0:00:15]} Rb3+ {[%emt 0:02:10]} 45. Kg4 {[%emt 0:00:05]} Ba3 {[%emt 0:00:21]} 46. Rc7 {[%emt 0:09:03]} h6 {[%emt 0:01:11]} 47. Rb7 {[%emt 0:01:36]} Bc5 {[%emt 0:00:06]} 48. g3 {[%emt 0:04:22]} Kf8 {[%emt 0:03:44]} 49. Kh3 {[%emt 0:04:49]} Rb2 {[%emt 0:05:12]} 50. Rb8+ {[%emt 0:01:44]} Kf7 {[%emt 0:00:51]} 51. Rb7+ {[%emt 0:00:13]} Be7 {[%emt 0:00:39]} 52. Rb8 {[%emt 0:01:09]} g5 {[%emt 0:04:20]} 53. b6 {[%emt 0:02:41]} Bc5 {[%emt 0:03:03]} 54. b7 {[%emt 0:00:07]} Ba7 {[%emt 0:00:18]} 55. Rh8 {[%emt 0:00:18]} Kg6 {[%emt 0:00:23]} 56. Rf8 {[%emt 0:01:01]} gxf4 {[%emt 0:01:35]} 57. Rf6+ {[%emt 0:01:05]} Kh5 {[%emt 0:00:32]} 58. gxf4 {[%emt 0:02:53]} Rxb7 {[%emt 0:01:33]} 59. Rxe6 {[%emt 0:02:17]} Rb3+ {[%emt 0:01:01]} 60. Kg2 {[%emt 0:00:04]} Kg4 {[%emt 0:01:26]} 61. h3+ {[%emt 0:01:16]} Kxf4 {[%emt 0:00:15]} 62. Rf6+ {[%emt 0:00:10]} Kg5 {[%emt 0:01:12]} 63. Rf7 {[%emt 0:00:59]} Bc5 {[%emt 0:00:41]} 64. Rf3 {[%emt 0:02:00]} Rb1 {[%emt 0:00:33]} 65. Rf1 {[%emt 0:01:15]} Rb2+ {[%emt 0:00:29]} 66. Kg3 {[%emt 0:00:04]} Re2 {[%emt 0:00:18]} 67. h4+ {[%emt 0:00:04]} Kg6 {[%emt 0:00:03]} 68. Rf6+ {[%emt 0:00:21]} Kg7 {[%emt 0:00:02]} 69. Kf4 {[%emt 0:01:49]} Be7 {[%emt 0:00:06]} 70. Ra6 {[%emt 0:01:32]} Bxh4 {[%emt 0:00:06]} 71. Kf5 {[%emt 0:00:53]} Rf2+ {[%emt 0:00:17]} 72. Kg4 {[%emt 0:00:32]} Bg5 {[%emt 0:00:18]} 73. Ra7+ {[%emt 0:00:43]} Kg6 {[%emt 0:00:33]} 74. Ra6+ {[%emt 0:00:04]} Kf7 {[%emt 0:00:09]} 75. Rc6 {[%emt 0:01:01]} Rf4+ {[%emt 0:00:09]} 76. Kg3 {[%emt 0:00:10]} Re4 {[%emt 0:00:07]} 77. e6+ {[%emt 0:00:07]} Ke7 {[%emt 0:00:26]} 78. Kf3 {[%emt 0:00:09]} Ra4 {[%emt 0:00:05]} 79. Rb6 {[%emt 0:00:30]} Bf4 {[%emt 0:00:26]} 80. Rc6 {[%emt 0:01:49]} Bd6 {[%emt 0:00:10]} 81. Rc1 {[%emt 0:00:29]} Kxe6 {[%emt 0:00:30]} 82. Rh1 {[%emt 0:00:16]} Bf4 {[%emt 0:00:27]} 83. Rh4 {[%emt 0:01:29]} Kf5 {[%emt 0:00:10]} 84. Rh5+ {[%emt 0:00:07]} Bg5 {[%emt 0:00:06]} 85. Rh3 {[%emt 0:00:05]} Kg6 {[%emt 0:00:53]} 86. Kg2 {[%emt 0:00:08]} h5 {[%emt 0:00:09]} 87. Rb3 {[%emt 0:00:07]} Kf5 {[%emt 0:00:14]} 88. Rf3+ {[%emt 0:00:22]} Bf4 {[%emt 0:00:08]} 89. Rf2 {[%emt 0:00:30]} Kg4 {[%emt 0:00:07]} 90. Rf3 {[%emt 0:00:20]} h4 {[%emt 0:00:18]} 91. Rf2 {[%emt 0:00:10]} Ra1 {[%emt 0:00:47]} 92. Rf1 {[%emt 0:00:16]} h3+ {[%emt 0:00:23]} 0-1